[Event "Summer Prague Open-A 2022"]
[Site "Prague"]
[Date "2022.08.10"]
[Round "7.12"]
[White "Meissner, Felix"]
[Black "Nemeth, Zalan"]
[Result "0-1"]
[ECO "B23"]
[WhiteElo "2381"]
[BlackElo "2194"]
[Annotator "RC"]
[PlyCount "106"]
[EventDate "2022.08.05"]
[EventType "swiss"]
[EventCountry "CZE"]
[SourceTitle "playchess.com"]
[Source "ChessBase"]
[SourceQuality "1"]
[TimeControl "40/5400+30:1800+30"]

1. e4 {[%emt 0:00:03]} c5 {[%emt 0:02:46]} 2. Nc3 {[%emt 0:00:16]} Nc6 {[%emt 0:00:13]} 3. f4 {[%emt 0:01:30]} g6 {[%emt 0:02:41]} 4. Nf3 {[%emt 0:00:27]} Bg7 {[%emt 0:00:06]} 5. Bb5 {[%emt 0:06:48]} Nd4 {[%emt 0:05:34]} 6. Bc4 {[%emt 0:03:21]} e6 {[%emt 0:02:11]} 7. Nxd4 {[%emt 0:05:08]} cxd4 {[%emt 0:00:20]} 8. Nb5 {[%emt 0:05:29]} d5 {[%emt 0:03:58]} 9. exd5 {[%emt 0:11:43]} exd5 {[%emt 0:01:20]} 10. Bd3 {[%emt 0:03:12]} a6 {[%emt 0:00:17]} 11. Na3 {[%emt 0:01:10]} Ne7 {[%emt 0:08:52]} 12. O-O {[%emt 0:01:35]} O-O {[%emt 0:00:04]} 13. Qf3 {[%emt 0:05:14]} Re8 {[%emt 0:05:14]} 14. c3 {[%emt 0:07:28]} Bf5 {[%emt 0:13:46]} 15. Nc2 {[%emt 0:01:48]} Qb6 {[%emt 0:03:17]} 16. Kh1 {[%emt 0:02:34]} Bxd3 {[%emt 0:06:50]} 17. Qxd3 {[%emt 0:00:02]} Nf5 {[%emt 0:00:07]} 18. cxd4 {[%emt 0:04:46]} Re4 {[%emt 0:06:27]} 19. Rb1 {[%emt 0:08:51]} Rc8 {[%emt 0:07:42]} 20. b3 {[%emt 0:01:17]} Qc7 {[%emt 0:01:41]} 21. Ne3 {[%emt 0:03:53]} Rxd4 {[%emt 0:01:24]} 22. Qe2 {[%emt 0:00:20]} Re4 {[%emt 0:05:25]} 23. d3 {[%emt 0:03:37]} Rxe3 {[%emt 0:03:31]} 24. Bxe3 {[%emt 0:00:07]} Qe7 {[%emt 0:00:20]} 25. Rbe1 {[%emt 0:09:53]} Re8 {[%emt 0:00:20]} 26. Qd2 {[%emt 0:09:27]} Nxe3 {[%emt 0:00:07]} 27. d4 {[%emt 0:02:40]} Nxf1 {[%emt 0:05:14]} 28. Rxe7 {[%emt 0:00:05]} Rxe7 {[%emt 0:00:07]} 29. Qb4 {[%emt 0:00:08]} Bf8 {[%emt 0:00:48]} 30. Qa5 {[%emt 0:01:07]} Re4 {[%emt 0:04:14]} 31. g3 {[%emt 0:00:47]} Ne3 {[%emt 0:02:23]} 32. Qb6 {[%emt 0:00:27]} Nf5 {[%emt 0:01:58]} 33. Qxb7 {[%emt 0:00:26]} Rxd4 {[%emt 0:00:09]} 34. Qxa6 {[%emt 0:00:22]} Ne3 {[%emt 0:00:15]} 35. Kg1 {[%emt 0:01:15]} Rd2 {[%emt 0:00:58]} 36. Qa5 {[%emt 0:00:36]} Rg2+ {[%emt 0:00:10]} 37. Kh1 {[%emt 0:00:05]} Rf2 {[%emt 0:00:55]} 38. h3 {[%emt 0:00:05]} d4 {[%emt 0:00:29]} 39. Qe5 {[%emt 0:00:28]} Rf1+ {[%emt 0:01:02]} 40. Kh2 {[%emt 0:00:06]} Rf2+ {[%emt 0:03:45]} 41. Kg1 {[%emt 0:30:49]} Rxa2 {[%emt 0:07:51]} 42. Qxd4 {[%emt 0:00:00]} Rg2+ {[%emt 0:00:05]} 43. Kh1 {[%emt 0:00:00]} Rxg3 {[%emt 0:00:03]} 44. b4 {[%emt 0:00:00]} Rxh3+ {[%emt 0:01:59]} 45. Kg1 {[%emt 0:00:00]} Nf5 {[%emt 0:02:22]} 46. Qc4 {[%emt 0:00:00]} Bd6 {[%emt 0:02:31]} 47. b5 {[%emt 0:00:00]} Rg3+ {[%emt 0:02:31]} 48. Kh1 {[%emt 0:00:00]} Rf3 {[%emt 0:00:39]} 49. Qc6 {[%emt 0:00:00]} Rf1+ {[%emt 0:04:18]} 50. Kg2 {[%emt 0:00:00]} Ne3+ {[%emt 0:03:31]} 51. Kh3 {[%emt 0:00:00]} Bxf4 {[%emt 0:00:17]} 52. b6 {[%emt 0:00:00]} Rf2 {[%emt 0:01:50]} 53. Qh1 {[%emt 0:00:00]} Rg2 0-1

[Event "Summer Prague Open-A 2022"]
[Site "Prague"]
[Date "2022.08.10"]
[Round "7.13"]
[White "Pap, Gyula"]
[Black "Mirimanian, Hayk"]
[Result "1/2-1/2"]
[ECO "B40"]
[WhiteElo "2481"]
[BlackElo "2228"]
[Annotator "TA"]
[PlyCount "21"]
[EventDate "2022.08.05"]
[EventType "swiss"]
[EventCountry "CZE"]
[SourceTitle "playchess.com"]
[Source "ChessBase"]
[SourceQuality "1"]
[TimeControl "40/5400+30:1800+30"]

{[%evp 14,19,37,39,62,47,62,19]} 1. e4 {[%emt 0:00:06]} c5 {[%emt 0:03:57]} 2. Nf3 {[%emt 0:00:31][%cal Bg1f3,Bf3d4,Bd4c6][%mdl 32]} e6 {[%emt 0:00:22]} 3. c4 {[%emt 0:07:45]} Nc6 {[%emt 0:03:38]} 4. Nc3 {[%emt 0:00:07]} a6 {[%emt 0:05:12]} 5. d4 {[%emt 0:03:30]} cxd4 {[%emt 0:00:43]} 6. Nxd4 {[%emt 0:00:07]} Qc7 {[%emt 0:01:04]} 7. a3 {[%emt 0:10:07]} Nf6 {[%emt 0:03:38]} 8. Be3 {[%emt 0:03:26] White is slightly better.} b6 {[%emt 0:08:06] B41: Sicilian: Kan Variation: 5 c4.} 9. Rc1 {[%emt 0:08:33] White is more active.} Bb7 {[%emt 0:04:09]} 10. Nxc6 {[%emt 0:00:14] [#]} {Predecessor:} dxc6 $146 11. Bd3 {½-½ (11) Packroff,H (2008)-Hellwege,W (1870) Plau am See 2005} 1/2-1/2

[Event "Summer Prague Open-A 2022"]
[Site "Prague"]
[Date "2022.08.10"]
[Round "7.14"]
[White "Kovalskyi, Roman"]
[Black "Schmaltz, Roland"]
[Result "0-1"]
[ECO "B07"]
[WhiteElo "2056"]
[BlackElo "2466"]
[Annotator "TA"]
[PlyCount "120"]
[EventDate "2022.08.05"]
[EventType "swiss"]
[EventCountry "CZE"]
[SourceTitle "playchess.com"]
[Source "ChessBase"]
[SourceQuality "1"]
[TimeControl "40/5400+30:1800+30"]

{[%evp 9,120,22,46,32,32,32,33,34,31,40,27,16,29,2,36,21,16,20,12,0,0,-39,-22,-23,-23,-22,-18,-9,-20,-80,-54,-66,-60,-103,-118,-129,-117,-95,24,30,35,-131,-149,-335,-332,-339,-338,-309,-248,-339,-341,-331,-318,-502,-196,-179,-26,-858,-868,-835,-15,-235,-225,-712,-825,-821,-815,-802,-802,-795,-797,-780,-781,-766,-763,-569,-712,-677,-629,-564,-534,-872,-800,-5829,-5716,-464,-10220,-29958,-29959,-6835,-6499,-5826,-5826,-29956,-5222,-5214,-5135,-3778,-1181,-29981,-29982,-29982,-29983,-29985,-29986,-29986,-29987,-29987,-29988,-29988,-29989,-29995,-29996]} 1. e4 {[%emt 0:00:02]} d6 {[%emt 0:01:47]} 2. d4 {[%emt 0:00:17]} Nf6 {[%emt 0:00:22]} 3. Nc3 {[%emt 0:00:23]} e5 {[%emt 0:00:04]} 4. Nge2 {[%emt 0:00:44]} Nbd7 {[%emt 0:00:08]} 5. h3 {[%emt 0:00:44]} h5 {[%emt 0:01:57]} 6. Be3 {[%emt 0:00:55] [#] B07: Pirc Defence: Miscellaneous Systems.} a6 $146 {[%emt 0:00:13]} ({Predecessor:} 6... c6 7. a4 Qc7 8. Qd2 Be7 9. g3 b6 10. Bg2 Bb7 11. O-O O-O 12. f4 exd4 13. Nxd4 {½-½ (36) Silva,O (2341)-Koelle,T (2275) Chess.com INT 2020}) 7. a4 {[%emt 0:01:05]} b6 {[%emt 0:00:06]} 8. g3 {[%emt 0:01:11] White is slightly better.} Bb7 {[%emt 0:00:07]} 9. Bg2 {[%emt 0:00:04]} Be7 {[%emt 0:02:09]} 10. O-O {[%emt 0:01:04]} O-O {[%emt 0:00:14]} 11. Qd2 {[%emt 0:01:14]} Re8 {[%emt 0:00:50]} 12. d5 {[%emt 0:04:52]} c6 {[%emt 0:01:08]} 13. dxc6 {[%emt 0:03:36]} Bxc6 {[%emt 0:00:12]} 14. b4 {[%emt 0:00:08]} Bb7 {[%emt 0:02:54]} 15. Rac1 {[%emt 0:12:12]} Rc8 {[%emt 0:00:32]} 16. Qd3 {[%emt 0:05:24] Inhibits Rc4.} Qc7 {[%emt 0:00:11]} 17. Rfd1 {[%emt 0:01:33]} Qc4 {[%emt 0:00:32]} 18. b5 {[%emt 0:00:20]} a5 {[%emt 0:01:43]} 19. f3 {[%emt 0:07:39]} (19. h4 $11) 19... Rc7 {[%emt 0:06:58]} 20. Bf1 {[%emt 0:04:17]} Rec8 {[%emt 0:02:58]} 21. Kg2 {[%emt 0:01:38]} Qb4 {[%emt 0:03:59][%cal Rc7c3]} 22. Bd2 {[%emt 0:01:35]} Nc5 {[%emt 0:02:17]} 23. Qe3 {[%emt 0:01:24]} Nxa4 {[%emt 0:01:09] Black is much more active.} (23... Qc4 $17 24. h4 g6) 24. Nxa4 $11 {[%emt 0:04:20]} Qxa4 {[%emt 0:00:06]} 25. Qxb6 $2 {[%emt 0:00:22]} (25. c4 $1 $14 {is the one way to stay ahead.}) 25... Nxe4 $17 {[%emt 0:16:21]} 26. Ra1 $2 {[%emt 0:15:29] [#]} (26. Qxa5 $17 Qc4 27. Be3 (27. Nc3 $2 Nxd2 28. Bxc4 Nxc4 $17)) 26... Qxa1 $3 $19 {[%emt 0:00:09][%mdl 512]} 27. Rxa1 {[%emt 0:00:21]} Nxd2 {[%emt 0:00:06]} 28. Qxa5 {[%emt 0:11:55]} Rxc2 {[%emt 0:01:40] Dancing on a razor blade.} (28... Bxf3+ $2 29. Kf2 Rxc2 30. b6 $19) 29. Ra2 {[%emt 0:02:35]} Bxf3+ {[%emt 0:06:50]} 30. Kf2 {[%emt 0:00:19]} d5 {[%emt 0:02:08]} 31. b6 {[%emt 0:08:24]} (31. Qxd2 $142 Rxd2 32. Rxd2) 31... Bc5+ $2 {[%emt 0:06:07]} (31... Rxa2 32. b7 Rxa5 $1 33. bxc8=Q+ Bf8) 32. Ke1 {[%emt 0:00:14] [#]} Rxa2 {[%emt 0:00:32]} (32... Bxb6 $1 $19 {[%mdl 512]} 33. Rxc2 Bxa5 34. Rxc8+ Kh7) 33. Qxa2 {[%emt 0:00:08][%mdl 8192]} (33. b7 $11 Rb8 34. Qxa2) 33... Ne4 {[%emt 0:01:31]} 34. Qb3 {[%emt 0:02:41] [#] Inhibits Bb4+.} Bf2+ $2 {[%emt 0:04:49]} (34... Ra8 $1 {( -> ...Ra1+)} 35. Kd1 Ra3 36. Qxa3 Bxa3) 35. Kd1 {[%emt 0:00:09]} Rc3 {[%emt 0:04:51]} 36. Qb2 {[%emt 0:04:44]} (36. Qxd5 Be3 37. Qa8+ Kh7 38. Qxe4+ Bxe4 39. Nxc3 Bf3+ 40. Be2 Bxe2+ 41. Kxe2 Bxb6 42. g4) 36... Rd3+ {[%emt 0:00:40]} ({Less strong is} 36... Bxg3 37. b7 Nf2+ 38. Kd2 Ne4+ 39. Kd1 Nf2+ 40. Ke1 Nd3+ 41. Kd2 Be1+ 42. Ke3 Bf2+ 43. Kxf3 Nxb2+ 44. Nxc3 $11) 37. Kc1 {[%emt 0:00:10]} Be3+ {[%emt 0:00:54]} 38. Kb1 {[%emt 0:00:08]} Rd1+ {[%emt 0:02:29]} 39. Nc1 {[%emt 0:01:59]} Bxc1 {[%emt 0:00:57]} ({Inferior is} 39... Rxf1 40. b7 f6 41. g4 $17 (41. b8=Q+ Kh7 $17)) 40. b7 {[%emt 0:03:31]} Bxb2+ {[%emt 0:02:14]} 41. Kxb2 {[%emt 0:01:48]} Rxf1 {[%emt 0:01:09]} 42. b8=Q+ {[%emt 0:00:05]} Kh7 {[%emt 0:00:11]} 43. Qxe5 {[%emt 0:00:17]} Nf6 {[%emt 0:02:32]} 44. Qf5+ {[%emt 0:03:17]} Kh6 {[%emt 0:00:16] aiming for ...Bg2.} 45. Qf4+ {[%emt 0:00:16] [#]} Kg6 $1 {[%emt 0:00:10]} 46. h4 {[%emt 0:00:16]} Bg2 {[%emt 0:00:26]} 47. Qg5+ {[%emt 0:02:07]} Kh7 {[%emt 0:00:08]} 48. Qe5 {[%emt 0:00:30]} Be4 {[%emt 0:00:33]} 49. Kc3 {[%emt 0:01:25]} Rf3+ {[%emt 0:00:29]} 50. Kb4 {[%emt 0:01:10]} Bg6 {[%emt 0:00:18]} 51. Qd6 {[%emt 0:01:12]} Rd3 {[%emt 0:00:21]} (51... Re3 $142 52. Ka5 Rd3 53. Qf4 d4 54. Kb5 Nd5 55. Qe5 Nc3+ 56. Kc4 f6 57. Qe1 Re3 58. Qd2 Rxg3 59. Qe1 {[#]} Ne2 $1 {[%mdl 512]} 60. Kb5 d3 61. Qd2 Rg4 62. Qb2 Nd4+ 63. Kb6 Nf3 64. Kc7 d2 65. Qa1 Rg1 66. Qa4 d1=Q 67. Qxd1 Rxd1 68. Kc6 Nxh4 69. Kc5 Nf5 70. Kc4 h4 71. Kc3 h3 72. Kc2 Ne3+ 73. Kb2 h2 74. Kb3 h1=Q 75. Kb2 Rb1+ 76. Kc3 Qc1+ 77. Kd4 Rb4#) 52. Qe5 {[%emt 0:00:26]} d4 {[%emt 0:00:17][%cal Bd5d4,Bd4d3,Bd3d2][%mdl 32]} 53. Kc4 {[%emt 0:00:20]} Ng4 {[%emt 0:00:25]} 54. Qe2 {[%emt 0:01:05]} Re3 {[%emt 0:00:44] Black mates.} 55. Qg2 {[%emt 0:00:18]} d3 {[%emt 0:00:10]} 56. Kc3 {[%emt 0:00:20]} Re2 {[%emt 0:00:18]} 57. Qf3 {[%emt 0:00:13]} Rc2+ {[%emt 0:00:19]} 58. Kd4 {[%emt 0:00:02]} d2 {[%emt 0:00:43]} 59. Qe2 {[%emt 0:01:05] [#]} Nf2 $1 {[%emt 0:00:16]} 60. Qd3 {[%emt 0:00:12]} (60. Ke3 d1=Q) 60... Nxd3 {[%emt 0:00:14] Weighted Error Value: White=1.00/Black=0.37} 0-1

[Event "Summer Prague Open-A 2022"]
[Site "Prague"]
[Date "2022.08.10"]
[Round "7.15"]
[White "Hajiyev, Kanan"]
[Black "Sorm, Daniel"]
[Result "1/2-1/2"]
[ECO "A46"]
[WhiteElo "2142"]
[BlackElo "2308"]
[Annotator "TA"]
[PlyCount "142"]
[EventDate "2022.08.05"]
[EventType "swiss"]
[EventCountry "CZE"]
[SourceTitle "playchess.com"]
[Source "ChessBase"]
[SourceQuality "1"]
[TimeControl "40/5400+30:1800+30"]

{[%evp 12,142,12,9,9,5,24,18,16,29,49,58,53,54,66,50,73,78,77,49,38,42,56,33,31,12,79,86,87,83,80,81,121,121,125,117,116,122,122,123,153,122,122,60,122,122,122,107,107,107,107,108,107,108,108,108,110,77,85,85,85,85,85,85,85,85,85,85,118,41,41,41,85,85,85,85,85,85,85,85,85,85,85,85,85,85,125,125,125,125,125,125,125,0,0,0,0,0,0,0,0,0,0,0,0,0,0,0,0,0,0,0,0,0,0,0,0,0,0,0,0,0,0,0,0,0,0,0,0,0,0,0,0]} 1. d4 {[%emt 0:03:26]} Nf6 {[%emt 0:00:43]} 2. Nf3 {[%emt 0:00:09]} d6 {[%emt 0:00:48]} 3. g3 {[%emt 0:00:47]} Nbd7 {[%emt 0:00:39]} 4. Bg2 {[%emt 0:00:15]} e5 {[%emt 0:00:38]} 5. c4 {[%emt 0:00:43]} c6 {[%emt 0:01:12]} 6. dxe5 {[%emt 0:07:20]} dxe5 {[%emt 0:00:26]} 7. O-O {[%emt 0:00:08]} Bc5 {[%emt 0:02:39] A53: Old Indian Defence without Nf3.} 8. Nc3 {[%emt 0:04:57]} O-O {[%emt 0:05:19]} 9. Na4 {[%emt 0:01:59]} Be7 {[%emt 0:00:55]} 10. Qc2 {[%emt 0:07:19] [#]} b6 $146 {[%emt 0:06:16]} ({Predecessor:} 10... Re8 11. h3 Bf8 12. Be3 h6 13. Rfd1 Qc7 14. Nd2 Nb6 15. Nc5 Nh7 16. b4 f5 {½-½ (35) Papin,V (2502)-Kazhgaleyev,M (2576) Melbourne 2014}) 11. Nh4 {[%emt 0:02:48]} Bb7 {[%emt 0:05:33]} 12. Nf5 $1 {[%emt 0:00:55]} Re8 {[%emt 0:00:22]} 13. Rd1 {[%emt 0:05:03] White is more active.} Qc7 {[%emt 0:00:55]} 14. Nxe7+ {[%emt 0:11:30]} Rxe7 {[%emt 0:00:29]} 15. Bg5 {[%emt 0:08:24]} h6 {[%emt 0:06:40]} 16. Bxf6 {[%emt 0:01:22]} Nxf6 {[%emt 0:00:05]} 17. c5 {[%emt 0:01:35]} e4 {[%emt 0:00:05]} 18. Rd4 {[%emt 0:03:49]} Qe5 {[%emt 0:07:15] [#]} (18... Ba6 $11 {keeps the balance.}) 19. e3 $1 $16 {[%emt 0:04:17]} b5 {[%emt 0:01:32]} 20. Nc3 {[%emt 0:00:07][%cal Rc3e4]} Qxc5 {[%emt 0:00:33]} 21. Rc1 {[%emt 0:02:17][%cal Oc3d5]} Rd7 {[%emt 0:21:59] Prevents Nd5.} 22. Nxe4 {[%emt 0:05:23]} Qxc2 {[%emt 0:00:39]} 23. Nxf6+ {[%emt 0:00:24]} gxf6 {[%emt 0:00:06]} 24. Rxc2 {[%emt 0:00:14]} Rxd4 {[%emt 0:00:08]} 25. exd4 {[%emt 0:00:02][%mdl 4096] Endgame KRB-KRB} Rc8 {[%emt 0:02:10]} 26. b4 {[%emt 0:01:44]} Rd8 {[%emt 0:06:49]} 27. Rd2 {[%emt 0:08:28]} (27. a3 $16) 27... a5 {[%emt 0:12:24]} (27... Rd6 $14) 28. bxa5 {[%emt 0:01:21][%cal Oa5a6]} Ra8 {[%emt 0:00:07] [#]} 29. Rc2 $1 {[%emt 0:00:12] Black must now prevent d5.} Ra6 {[%emt 0:03:12]} 30. Rc5 {[%emt 0:02:11] d5 is the strong threat.} Rxa5 {[%emt 0:00:29]} 31. Bxc6 {[%emt 0:00:31]} Bxc6 {[%emt 0:00:06]} 32. Rxc6 {[%emt 0:00:04]} Rxa2 {[%emt 0:01:12]} 33. Rxf6 {[%emt 0:00:18] KR-KR} Kg7 {[%emt 0:00:24]} 34. Rd6 {[%emt 0:02:53]} b4 {[%emt 0:08:33]} 35. Rb6 {[%emt 0:00:29]} Ra4 {[%emt 0:00:08]} 36. Kg2 {[%emt 0:04:55]} b3 {[%emt 0:00:05]} 37. d5 {[%emt 0:00:37]} Rd4 {[%emt 0:00:06]} 38. Rxb3 {[%emt 0:00:20] Hoping for Rb5.} Rxd5 {[%emt 0:00:05]} 39. Rb6 {[%emt 0:00:04]} Rd3 {[%emt 0:05:26]} 40. f4 {[%emt 0:04:23]} (40. Rb5 $16) 40... Rd2+ $14 {[%emt 0:00:56]} 41. Kh3 {[%emt 0:30:01]} f5 {[%emt 0:16:54]} 42. Rb1 {[%emt 0:00:00]} Kg6 {[%emt 0:00:39]} 43. Rg1 {[%emt 0:00:00][%cal Bb1g1,Bg1g2,Bg2e2,Be2e5,Be5e6,Be6a6][%mdl 32]} Kh5 {[%emt 0:05:00]} 44. Rg2 {[%emt 0:00:00]} Rd3 {[%emt 0:03:02]} 45. Re2 {[%emt 0:00:00]} Rb3 {[%emt 0:01:58]} 46. Re5 {[%emt 0:00:00]} Kg6 {[%emt 0:00:04]} 47. Kh4 {[%emt 0:00:00] aiming for Re6+.} Rb2 {[%emt 0:03:19][%cal Rb2h2]} 48. h3 {[%emt 0:00:00]} Rh2 {[%emt 0:00:29]} 49. Re6+ {[%emt 0:00:00]} Kg7 {[%emt 0:00:07]} 50. Ra6 {[%emt 0:00:00]} Rh1 {[%emt 0:00:13]} 51. Rb6 {[%emt 0:00:00]} Rh2 {[%emt 0:00:04]} 52. g4 {[%emt 0:00:00]} (52. Rd6 $16) 52... fxg4 $11 {[%emt 0:00:09] The position is equal.} 53. Kxg4 {[%emt 0:00:00]} Rg2+ {[%emt 0:02:14]} 54. Kf5 {[%emt 0:00:00]} h5 {[%emt 0:00:12]} 55. Rb7+ {[%emt 0:00:00]} Kh6 {[%emt 0:00:02]} 56. Rb3 {[%emt 0:00:00]} h4 {[%emt 0:00:56]} 57. Kf6 {[%emt 0:00:00]} Rg3 {[%emt 0:00:54]} 58. Rb8 {[%emt 0:00:00][%cal Rb8h8]} Kh7 {[%emt 0:00:04] Prevents Rh8+.} 59. f5 {[%emt 0:00:00]} Rxh3 {[%emt 0:00:16]} 60. Rb7+ {[%emt 0:00:00]} Kh6 {[%emt 0:00:04]} 61. Rb8 {[%emt 0:00:00][%cal Rb8h8]} Kh7 {[%emt 0:00:54] Prevents Rh8+.} 62. Kf7 {[%emt 0:00:00]} Rf3 {[%emt 0:00:44]} 63. f6 {[%emt 0:00:00]} h3 {[%emt 0:00:22]} 64. Rb4 {[%emt 0:00:00][%cal Rb4h4]} Kh6 {[%emt 0:00:06]} 65. Rb8 {[%emt 0:00:00]} Kg5 {[%emt 0:01:04]} 66. Rg8+ {[%emt 0:00:00]} Kh4 {[%emt 0:00:35]} 67. Ke7 {[%emt 0:00:15]} h2 {[%emt 0:00:37]} 68. f7 {[%emt 0:02:52]} Rxf7+ {[%emt 0:03:04]} 69. Kxf7 {[%emt 0:00:18]} Kh3 {[%emt 0:00:10]} 70. Rh8+ {[%emt 0:00:09]} Kg2 {[%emt 0:00:07]} 71. Rxh2+ {[%emt 0:00:03]} Kxh2 {Weighted Error Value: White=0.08 (flawless) /Black=0.09 (flawless)} 1/2-1/2

[Event "Summer Prague Open-A 2022"]
[Site "Prague"]
[Date "2022.08.10"]
[Round "7.16"]
[White "Parligras, Cosmin"]
[Black "Kristiansen, Willy M"]
[Result "1-0"]
[ECO "A13"]
[WhiteElo "2277"]
[BlackElo "2121"]
[Annotator "TA"]
[PlyCount "83"]
[EventDate "2022.08.05"]
[EventType "swiss"]
[EventCountry "CZE"]
[SourceTitle "playchess.com"]
[Source "ChessBase"]
[SourceQuality "1"]
[TimeControl "40/5400+30:1800+30"]

{[%evp 24,83,36,27,39,32,89,83,120,133,339,338,327,310,310,292,288,238,291,163,211,198,196,221,247,246,291,297,324,314,337,254,254,259,266,162,163,0,278,152,206,207,306,306,306,306,394,383,383,376,381,381,484,473,494,494,674,674,674,674,674,645]} 1. Nf3 {[%emt 0:04:05]} d5 {[%emt 0:00:10]} 2. c4 {[%emt 0:00:28]} e6 {[%emt 0:00:11]} 3. g3 {[%emt 0:00:05]} c5 {[%emt 0:00:39]} 4. cxd5 {[%emt 0:00:44]} exd5 {[%emt 0:00:07]} 5. d4 {[%emt 0:00:06]} Nc6 {[%emt 0:00:36]} 6. Bg2 {[%emt 0:00:07]} Nf6 {[%emt 0:00:08]} 7. O-O {[%emt 0:00:14]} Be7 {[%emt 0:00:06]} 8. b3 {[%emt 0:01:01]} O-O {[%emt 0:00:17]} 9. dxc5 {[%emt 0:00:31]} Bxc5 {[%emt 0:00:30]} 10. Bb2 {[%emt 0:00:30]} Re8 {[%emt 0:02:31]} 11. Nc3 {[%emt 0:00:14]} Bg4 {[%emt 0:01:59]} 12. Rc1 {[%emt 0:00:08]} Bf8 {[%emt 0:00:54]} 13. h3 {[%emt 0:00:16]} Bh5 {[%emt 0:06:01] D34: Tarrasch Defence: 6 g3 Nf6 7 Bg2 Be7.} 14. e3 {[%emt 0:00:27]} Qa5 {[%emt 0:03:49]} (14... Ne4 $14) 15. a3 $16 {[%emt 0:00:53]} Ne4 {[%emt 0:06:30] [#] White is better.} 16. b4 $1 {[%emt 0:02:46] [#]} (16. Nxd5 $2 Rad8 17. b4 Qxd5 $19) (16. Qxd5 Nxc3 17. Qxa5 Ne2+ 18. Kh2 Nxa5 $17) 16... Nxb4 $146 {[%emt 0:12:19]} (16... Nxc3 $16 {is a better defense.} 17. Rxc3 (17. bxa5 Nxd1 18. Rfxd1 Bg6 $16) (17. Bxc3 Qxa3 18. b5 Ne7 $11) 17... Qd8) ({Predecessor:} 16... Nxc3 17. bxa5 Nxd1 18. Rfxd1 Red8 19. g4 Bg6 20. a6 Rab8 21. Ne5 Nxe5 22. Bxe5 {1-0 (22) Solozhenkin,E (2480)-Zolnierowicz,K (2355) Lublin 1993}) 17. axb4 $18 {[%emt 0:02:02]} Qxb4 {[%emt 0:04:39]} 18. Ba1 {[%emt 0:06:20]} Rad8 {[%emt 0:03:56]} 19. g4 {[%emt 0:02:52]} (19. Nxd5 Qa5 $11) 19... Bg6 {[%emt 0:00:31]} 20. Qd4 {[%emt 0:06:32]} (20. Nxd5 Qa5 $11) 20... Qa5 {[%emt 0:03:11]} 21. Qa4 {[%emt 0:00:57]} (21. Nh4 $142) 21... Qxa4 {[%emt 0:02:17]} 22. Nxa4 {[%emt 0:00:06]} b5 {[%emt 0:00:15]} 23. Nc3 {[%emt 0:00:09]} Nxc3 {[%emt 0:00:53]} 24. Bxc3 {[%emt 0:03:00]} b4 {[%emt 0:00:17]} 25. Bd4 {[%emt 0:01:10]} b3 {[%emt 0:04:48]} 26. Ne5 {[%emt 0:09:46] Inhibits Bd3.} Bc2 {[%emt 0:11:05]} 27. Nc6 {[%emt 0:03:48]} Rd7 {[%emt 0:03:19]} 28. Ra1 {[%emt 0:20:22]} (28. Nxa7 h6 29. f4 Ra8 $18) 28... g5 {[%emt 0:12:57]} 29. Ne5 {[%emt 0:06:32]} (29. Nxa7 $6 Bg7 $16) (29. Rxa7 Rxa7 30. Nxa7 Bg7 $16) 29... Rde7 {[%emt 0:15:29]} 30. Nc6 {[%emt 0:08:05]} (30. Nf3 $18) 30... Rc7 $2 {[%emt 0:00:29][%mdl 8192]} (30... Rd7 $1 $11 {and Black stays safe.}) 31. Nxa7 {[%emt 0:05:46]} (31. Bxd5 $18 {Black must now prevent Na5.} Bg7 32. Ra5 (32. Nxa7 Bxd4 33. exd4 b2 $17) (32. Rxa7 Rxa7 33. Bxa7 b2 $16)) 31... Bg7 {[%emt 0:01:28]} (31... Bc5 $16) 32. Nb5 {[%emt 0:00:47]} ({Worse is} 32. Bxd5 Bxd4 33. exd4 b2 $17) 32... Rd7 {[%emt 0:03:14]} (32... Bxd4 $142 33. Nxd4 (33. Nxc7 Bxa1 34. Nxe8 b2 $16) 33... b2) 33. Bxg7 {[%emt 0:01:44]} Kxg7 {[%emt 0:00:07]} 34. Nd4 {[%emt 0:00:05]} Bd3 {[%emt 0:00:54] [#]} 35. Nxb3 {[%emt 0:00:16]} Bxf1 {[%emt 0:00:08]} 36. Kxf1 {[%emt 0:00:42]} ({Don't play} 36. Rxf1 Rc8 37. Ra1 Rcc7 $18) 36... Rb8 {[%emt 0:00:21]} 37. Nd4 {[%emt 0:00:10]} f6 {[%emt 0:00:25]} 38. Bf3 {[%emt 0:00:46] White is clearly winning.} Rb2 {[%emt 0:00:14]} 39. Ra5 {[%emt 0:00:30]} h5 {[%emt 0:00:40]} 40. gxh5 {[%emt 0:00:48]} Rbb7 {[%emt 0:01:01]} 41. Bxd5 {[%emt 0:33:57]} Ra7 {[%emt 0:30:53]} 42. Rc5 {[%emt 0:00:31] Weighted Error Value: White=0.24 (precise) /Black=0.53} 1-0